[Event "FIDE Grand Swiss 2023"]
[Site "Villa Marina, Douglas, Isle of Man, Isle Of Man"]
[Date "2023.11.02"]
[Round "8.34"]
[White "Aravindh, Chithambaram Vr."]
[Black "Maurizzi, Marc`andria"]
[Result "1-0"]
[TimeControl "40/90 + 30 + 30s/move"]
[WhiteFideId "5072786"]
[BlackFideId "36083534"]
[WhiteElo "2649"]
[BlackElo "2555"]

1. Nf3 {[%clk 01:40:52]} {[%emt 00:00:07]} Nf6 {[%clk 01:39:38]} {[%emt
00:01:22]} 2. d4 {[%clk 01:41:12]} {[%emt 00:00:10]} d5 {[%clk 01:39:19]}
{[%emt 00:00:50]} 3. c3 {[%clk 01:41:18]} {[%emt 00:00:23]} e6 {[%clk
01:36:46]} {[%emt 00:03:03]} 4. Bf4 {[%clk 01:41:40]} {[%emt 00:00:08]} c5
{[%clk 01:32:03]} {[%emt 00:05:13]} 5. e3 {[%clk 01:42:03]} {[%emt 00:00:08]}
Nc6 {[%clk 01:32:31]} {[%emt 00:00:02]} 6. Nbd2 {[%clk 01:42:24]} {[%emt
00:00:08]} Nh5 {[%clk 01:32:59]} {[%emt 00:00:03]} 7. Bg5 {[%clk 01:40:12]}
{[%emt 00:02:41]} f6 {[%clk 01:33:03]} {[%emt 00:00:26]} 8. Bh4 {[%clk
01:40:38]} {[%emt 00:00:04]} g6 {[%clk 01:30:08]} {[%emt 00:03:25]} 9. Be2
{[%clk 01:37:49]} {[%emt 00:03:19]} cxd4 {[%clk 01:26:58]} {[%emt 00:03:41]} 10.
cxd4 {[%clk 01:37:55]} {[%emt 00:00:23]} Be7 {[%clk 01:26:50]} {[%emt
00:00:38]} 11. Rc1 {[%clk 01:38:06]} {[%emt 00:00:19]} O-O {[%clk 01:25:09]}
{[%emt 00:02:11]} 12. O-O {[%clk 01:34:38]} {[%emt 00:03:58]} Ng7 {[%clk
01:23:57]} {[%emt 00:01:42]} 13. Bg3 {[%clk 01:33:59]} {[%emt 00:01:09]} Nf5
{[%clk 01:22:44]} {[%emt 00:01:43]} 14. a3 {[%clk 01:32:44]} {[%emt 00:01:45]}
Bd7 {[%clk 01:21:11]} {[%emt 00:02:03]} 15. Nb3 {[%clk 01:29:31]} {[%emt
00:03:43]} b6 {[%clk 01:12:37]} {[%emt 00:09:04]} 16. Rc3 {[%clk 01:26:17]}
{[%emt 00:03:44]} Nxg3 {[%clk 01:05:49]} {[%emt 00:07:19]} 17. hxg3 {[%clk
01:26:41]} {[%emt 00:00:04]} Na5 {[%clk 01:05:37]} {[%emt 00:00:43]} 18. Nxa5
{[%clk 01:21:03]} {[%emt 00:06:09]} bxa5 {[%clk 01:05:23]} {[%emt 00:00:44]} 19.
Ne1 {[%clk 01:21:25]} {[%emt 00:00:07]} Rc8 {[%clk 00:48:48]} {[%emt 00:17:06]}
20. Qd2 {[%clk 01:21:32]} {[%emt 00:00:22]} Rxc3 {[%clk 00:48:02]} {[%emt
00:01:16]} 21. Qxc3 {[%clk 01:21:55]} {[%emt 00:00:07]} Qb6 {[%clk 00:48:06]}
{[%emt 00:00:25]} 22. Nd3 {[%clk 01:22:09]} {[%emt 00:00:17]} Rc8 {[%clk
00:45:21]} {[%emt 00:03:14]} 23. Nc5 {[%clk 01:21:48]} {[%emt 00:00:51]} Bxc5
{[%clk 00:41:20]} {[%emt 00:04:32]} 24. dxc5 {[%clk 01:22:09]} {[%emt
00:00:09]} Qxc5 {[%clk 00:40:37]} {[%emt 00:01:13]} 25. Qxf6 {[%clk 01:22:31]}
{[%emt 00:00:08]} Qf8 {[%clk 00:40:25]} {[%emt 00:00:40]} 26. Qd4 {[%clk
01:16:06]} {[%emt 00:06:56]} Qc5 {[%clk 00:40:13]} {[%emt 00:00:43]} 27. Qg4
{[%clk 01:10:47]} {[%emt 00:05:49]} Qc2 {[%clk 00:31:10]} {[%emt 00:09:31]} 28.
Bf3 {[%clk 01:09:41]} {[%emt 00:01:37]} Qxb2 {[%clk 00:29:54]} {[%emt
00:01:46]} 29. Bxd5 {[%clk 01:09:25]} {[%emt 00:00:46]} Re8 {[%clk 00:30:03]}
{[%emt 00:00:22]} 30. Bc4 {[%clk 01:04:03]} {[%emt 00:05:51]} Qxa3 {[%clk
00:28:50]} {[%emt 00:01:44]} 31. Qd4 {[%clk 01:04:14]} {[%emt 00:00:19]} Bc6
{[%clk 00:23:37]} {[%emt 00:05:42]} 32. Qe5 {[%clk 00:59:56]} {[%emt 00:04:48]}
Bd7 {[%clk 00:18:37]} {[%emt 00:05:30]} 33. Rb1 {[%clk 00:56:22]} {[%emt
00:04:04]} Bc8 {[%clk 00:12:35]} {[%emt 00:06:33]} 34. Kh2 {[%clk 00:56:30]}
{[%emt 00:00:21]} Kf7 {[%clk 00:07:18]} {[%emt 00:05:48]} 35. Rb5 {[%clk
00:37:44]} {[%emt 00:19:17]} Qe7 {[%clk 00:02:26]} {[%emt 00:05:20]} 36. Rxa5
{[%clk 00:38:06]} {[%emt 00:00:09]} a6 {[%clk 00:01:07]} {[%emt 00:01:49]} 37.
Rc5 {[%clk 00:38:28]} {[%emt 00:00:08]} Bd7 {[%clk 00:01:30]} {[%emt 00:00:07]}
38. Bxa6 {[%clk 00:38:34]} {[%emt 00:00:25]} Qf6 {[%clk 00:01:35]} {[%emt
00:00:24]} 39. Qd6 {[%clk 00:36:03]} {[%emt 00:03:01]} Re7 {[%clk 00:01:04]}
{[%emt 00:01:01]} 40. f4 {[%clk 00:36:06]} {[%emt 00:00:27]} Qa1 {[%clk
00:00:32]} {[%emt 00:01:03]} 41. Rc7 {[%clk 00:35:28]} {[%emt 00:01:06]} Qh1+
{[%clk 00:46:55]} {[%emt 00:04:08]} 42. Kxh1 {[%clk 01:25:21]} 1-0

[Event "FIDE Grand Swiss 2023"]
[Site "Villa Marina, Douglas, Isle of Man, Isle Of Man"]
[Date "2023.11.02"]
[Round "8.35"]
[White "Rodrigue-Lemieux, Shawn"]
[Black "Van Foreest, Jorden"]
[Result "0-1"]
[TimeControl "40/90 + 30 + 30s/move"]
[WhiteFideId "2620049"]
[BlackFideId "1039784"]
[WhiteElo "2488"]
[BlackElo "2707"]

1. e4 {[%clk 01:40:56]} {[%emt 00:00:02]} c5 {[%clk 01:39:53]} {[%emt
00:01:08]} 2. Nf3 {[%clk 01:41:18]} {[%emt 00:00:08]} d6 {[%clk 01:39:27]}
{[%emt 00:00:55]} 3. Bb5+ {[%clk 01:41:41]} {[%emt 00:00:08]} Nd7 {[%clk
01:38:57]} {[%emt 00:01:00]} 4. Ba4 {[%clk 01:41:55]} {[%emt 00:00:16]} Ngf6
{[%clk 01:38:00]} {[%emt 00:01:26]} 5. O-O {[%clk 01:42:10]} {[%emt 00:00:14]}
a6 {[%clk 01:37:12]} {[%emt 00:01:20]} 6. c4 {[%clk 01:42:30]} {[%emt
00:00:09]} e6 {[%clk 01:36:43]} {[%emt 00:00:59]} 7. Nc3 {[%clk 01:42:25]}
{[%emt 00:00:35]} Be7 {[%clk 01:36:16]} {[%emt 00:00:56]} 8. d4 {[%clk
01:42:06]} {[%emt 00:00:51]} cxd4 {[%clk 01:35:58]} {[%emt 00:00:48]} 9. Nxd4
{[%clk 01:42:28]} {[%emt 00:00:08]} O-O {[%clk 01:35:42]} {[%emt 00:00:45]} 10.
Re1 {[%clk 01:39:45]} {[%emt 00:03:13]} Qc7 {[%clk 01:35:15]} {[%emt 00:00:58]}
11. Qe2 {[%clk 01:39:18]} {[%emt 00:00:57]} h6 {[%clk 01:34:59]} {[%emt
00:00:45]} 12. h3 {[%clk 01:25:27]} {[%emt 00:14:21]} Kh8 {[%clk 01:34:10]}
{[%emt 00:01:19]} 13. Nf3 {[%clk 01:14:15]} {[%emt 00:11:42]} b6 {[%clk
01:29:56]} {[%emt 00:04:45]} 14. Bxd7 {[%clk 01:03:05]} {[%emt 00:11:40]} Nxd7
{[%clk 01:27:41]} {[%emt 00:02:44]} 15. Bf4 {[%clk 01:00:46]} {[%emt 00:02:50]}
Bb7 {[%clk 01:25:11]} {[%emt 00:03:00]} 16. Rac1 {[%clk 00:56:11]} {[%emt
00:05:04]} Rac8 {[%clk 01:20:23]} {[%emt 00:05:19]} 17. b3 {[%clk 00:55:09]}
{[%emt 00:01:32]} Kg8 {[%clk 01:16:26]} {[%emt 00:04:26]} 18. Red1 {[%clk
00:50:10]} {[%emt 00:05:29]} Rfd8 {[%clk 01:09:58]} {[%emt 00:06:59]} 19. Nd4
{[%clk 00:44:14]} {[%emt 00:06:26]} Ne5 {[%clk 01:06:46]} {[%emt 00:03:43]} 20.
Be3 {[%clk 00:34:51]} {[%emt 00:09:52]} Bf6 {[%clk 00:58:45]} {[%emt 00:08:30]}
21. Qh5 {[%clk 00:34:53]} {[%emt 00:00:28]} Qe7 {[%clk 00:56:08]} {[%emt
00:03:07]} 22. Qe2 {[%clk 00:32:09]} {[%emt 00:03:15]} Ba8 {[%clk 00:55:07]}
{[%emt 00:01:31]} 23. Nf3 {[%clk 00:24:25]} {[%emt 00:08:13]} Nxf3+ {[%clk
00:42:07]} {[%emt 00:13:31]} 24. Qxf3 {[%clk 00:24:52]} {[%emt 00:00:03]} b5
{[%clk 00:41:55]} {[%emt 00:00:42]} 25. Bb6 {[%clk 00:24:38]} {[%emt 00:00:44]}
Rf8 {[%clk 00:41:50]} {[%emt 00:00:35]} 26. cxb5 {[%clk 00:23:18]} {[%emt
00:01:50]} axb5 {[%clk 00:42:05]} {[%emt 00:00:15]} 27. Bd4 {[%clk 00:20:57]}
{[%emt 00:02:51]} Bg5 {[%clk 00:41:28]} {[%emt 00:01:08]} 28. Be3 {[%clk
00:20:56]} {[%emt 00:00:30]} b4 {[%clk 00:38:32]} {[%emt 00:03:26]} 29. Nb5
{[%clk 00:17:19]} {[%emt 00:04:07]} d5 {[%clk 00:30:35]} {[%emt 00:08:27]} 30.
Bxg5 {[%clk 00:10:25]} {[%emt 00:07:24]} Qxg5 {[%clk 00:30:25]} {[%emt
00:00:40]} 31. Rxc8 {[%clk 00:09:26]} {[%emt 00:01:30]} Rxc8 {[%clk 00:30:45]}
{[%emt 00:00:09]} 32. exd5 {[%clk 00:07:52]} {[%emt 00:02:04]} Bxd5 {[%clk
00:30:32]} {[%emt 00:00:43]} 33. Qg4 {[%clk 00:08:17]} {[%emt 00:00:05]} Rc1
{[%clk 00:28:01]} {[%emt 00:03:01]} 34. Rxc1 {[%clk 00:08:38]} {[%emt
00:00:09]} Qxc1+ {[%clk 00:28:24]} {[%emt 00:00:07]} 35. Kh2 {[%clk 00:09:05]}
{[%emt 00:00:03]} Qd2 {[%clk 00:27:26]} {[%emt 00:01:28]} 36. Nc7 {[%clk
00:03:31]} {[%emt 00:06:04]} Bc6 {[%clk 00:26:16]} {[%emt 00:01:40]} 37. f3
{[%clk 00:01:13]} {[%emt 00:02:48]} Qd6+ {[%clk 00:19:59]} {[%emt 00:06:47]} 38.
Qg3 {[%clk 00:01:41]} {[%emt 00:00:02]} e5 {[%clk 00:20:24]} {[%emt 00:00:05]}
39. Na6 {[%clk 00:01:34]} {[%emt 00:00:37]} Bb5 {[%clk 00:19:42]} {[%emt
00:01:12]} 40. Nxb4 {[%clk 00:01:54]} {[%emt 00:00:10]} Qxb4 {[%clk 00:20:07]}
{[%emt 00:00:05]} 41. Qxe5 {[%clk 00:02:19]} {[%emt 00:00:05]} Bd7 {[%clk
00:20:09]} {[%emt 00:00:27]} 42. Qd5 {[%clk 00:50:24]} {[%emt 00:02:25]} Be6
{[%emt 00:01:30]} 43. Qd8+ {[%clk 00:50:48]} Kh7 {[%clk 01:09:39]} {[%emt
00:00:06]} 44. Qd3+ {[%clk 00:51:15]} {[%emt 00:00:04]} g6 {[%clk 01:09:57]}
{[%emt 00:00:12]} 45. Qa6 {[%clk 00:50:27]} {[%emt 00:01:18]} Qd2 {[%clk
01:09:40]} {[%emt 00:00:47]} 46. Qa7 {[%clk 00:50:28]} {[%emt 00:00:29]} Kg7
{[%clk 01:09:17]} {[%emt 00:00:53]} 47. Qa4 {[%clk 00:50:29]} {[%emt 00:00:29]}
h5 {[%clk 01:07:20]} {[%emt 00:02:27]} 48. Qa6 {[%clk 00:49:51]} {[%emt
00:01:07]} h4 {[%clk 01:04:56]} {[%emt 00:02:54]} 49. Qa4 {[%clk 00:49:25]}
{[%emt 00:00:57]} g5 {[%clk 01:04:47]} {[%emt 00:00:39]} 50. Qb5 {[%clk
00:49:32]} {[%emt 00:00:23]} Kf6 {[%clk 01:04:45]} {[%emt 00:00:31]} 51. Qa6
{[%clk 00:48:59]} {[%emt 00:01:04]} Ke5 {[%clk 01:01:13]} {[%emt 00:04:01]} 52.
Qb5+ {[%clk 00:48:01]} {[%emt 00:01:29]} Qd5 {[%clk 00:57:50]} {[%emt
00:03:53]} 53. Qb8+ {[%clk 00:47:05]} {[%emt 00:01:26]} Kf5 {[%clk 00:56:58]}
{[%emt 00:01:21]} 54. Qa7 {[%clk 00:46:48]} {[%emt 00:00:47]} Qe5+ {[%clk
00:57:08]} {[%emt 00:00:20]} 55. Kh1 {[%clk 00:46:36]} {[%emt 00:00:42]} Kg6
{[%clk 00:55:54]} {[%emt 00:01:44]} 56. Qa6 {[%clk 00:46:32]} {[%emt 00:00:35]}
Kg7 {[%clk 00:56:11]} {[%emt 00:00:13]} 57. Qa7 {[%clk 00:46:15]} {[%emt
00:00:48]} Qe1+ {[%clk 00:52:35]} {[%emt 00:04:05]} 58. Kh2 {[%clk 00:46:43]}
{[%emt 00:00:02]} Bxh3 {[%clk 00:50:01]} {[%emt 00:03:04]} 59. Qd4+ {[%clk
00:44:59]} {[%emt 00:02:13]} Kg6 {[%clk 00:49:17]} {[%emt 00:01:15]} 60. gxh3
{[%clk 00:45:26]} {[%emt 00:00:02]} Qg3+ {[%clk 00:49:41]} {[%emt 00:00:06]} 61.
Kh1 {[%clk 00:45:49]} {[%emt 00:00:07]} Qxh3+ {[%clk 00:50:08]} {[%emt
00:00:04]} 62. Kg1 {[%clk 00:46:15]} {[%emt 00:00:04]} Qg3+ {[%clk 00:50:34]}
{[%emt 00:00:04]} 63. Kh1 {[%clk 00:44:57]} {[%emt 00:01:48]} Qxf3+ {[%clk
00:50:52]} {[%emt 00:00:12]} 64. Kg1 {[%clk 00:44:18]} {[%emt 00:01:08]} h3
{[%clk 00:49:40]} {[%emt 00:01:42]} 65. Qd6+ {[%clk 00:43:28]} {[%emt
00:01:21]} Kh5 {[%clk 00:48:51]} {[%emt 00:01:19]} 66. Qd2 {[%clk 00:43:40]}
{[%emt 00:00:17]} g4 {[%clk 00:47:50]} {[%emt 00:01:32]} 67. Kh2 {[%clk
00:44:00]} {[%emt 00:00:09]} Qe4 {[%clk 00:47:15]} {[%emt 00:01:06]} 68. Qf2
{[%clk 00:40:00]} {[%emt 00:04:30]} f5 {[%clk 00:47:20]} {[%emt 00:00:25]} 69.
Qb2 {[%clk 00:38:43]} {[%emt 00:01:47]} Kg6 {[%clk 00:45:10]} {[%emt 00:02:40]}
70. Kg3 {[%clk 00:37:41]} {[%emt 00:01:32]} f4+ {[%clk 00:44:52]} {[%emt
00:00:48]} 71. Kh2 {[%clk 00:37:59]} {[%emt 00:00:12]} Kf5 {[%clk 00:44:42]}
{[%emt 00:00:39]} 0-1

[Event "FIDE Grand Swiss 2023"]
[Site "Villa Marina, Douglas, Isle of Man, Isle Of Man"]
[Date "2023.11.02"]
[Round "8.36"]
[White "Gukesh, D"]
[Black "Theodorou, Nikolas"]
[Result "1/2-1/2"]
[TimeControl "40/90 + 30 + 30s/move"]
[WhiteFideId "46616543"]
[BlackFideId "4262875"]
[WhiteElo "2758"]
[BlackElo "2619"]

1. d4 {[%clk 01:40:56]} {[%emt 00:00:03]} Nf6 {[%clk 01:40:56]} {[%emt
00:00:05]} 2. c4 {[%clk 01:41:20]} {[%emt 00:00:06]} g6 {[%clk 01:41:21]}
{[%emt 00:00:04]} 3. Nc3 {[%clk 01:40:18]} {[%emt 00:01:32]} Bg7 {[%clk
01:41:46]} {[%emt 00:00:05]} 4. e4 {[%clk 01:40:41]} {[%emt 00:00:07]} d6
{[%clk 01:42:12]} {[%emt 00:00:05]} 5. Nf3 {[%clk 01:38:33]} {[%emt 00:02:37]}
O-O {[%clk 01:42:30]} {[%emt 00:00:12]} 6. Be2 {[%clk 01:38:58]} {[%emt
00:00:06]} e5 {[%clk 01:42:49]} {[%emt 00:00:10]} 7. O-O {[%clk 01:39:20]}
{[%emt 00:00:08]} h6 {[%clk 01:43:13]} {[%emt 00:00:07]} 8. Re1 {[%clk
01:36:44]} {[%emt 00:03:05]} Nbd7 {[%clk 01:43:36]} {[%emt 00:00:07]} 9. Bf1
{[%clk 01:29:28]} {[%emt 00:07:46]} Re8 {[%clk 01:44:01]} {[%emt 00:00:06]} 10.
dxe5 {[%clk 01:25:16]} {[%emt 00:04:42]} dxe5 {[%clk 01:36:22]} {[%emt
00:08:08]} 11. Qc2 {[%clk 01:25:38]} {[%emt 00:00:08]} c6 {[%clk 01:36:45]}
{[%emt 00:00:08]} 12. Be3 {[%clk 01:25:05]} {[%emt 00:01:01]} Qe7 {[%clk
01:35:29]} {[%emt 00:01:47]} 13. h3 {[%clk 01:25:03]} {[%emt 00:00:32]} Nh5
{[%clk 01:30:40]} {[%emt 00:05:20]} 14. Rad1 {[%clk 01:16:18]} {[%emt
00:09:14]} Nf4 {[%clk 01:26:46]} {[%emt 00:04:24]} 15. a3 {[%clk 01:02:50]}
{[%emt 00:13:57]} Qf6 {[%clk 01:24:04]} {[%emt 00:03:13]} 16. g3 {[%clk
01:02:38]} {[%emt 00:00:42]} Ne6 {[%clk 01:23:51]} {[%emt 00:00:44]} 17. Bg2
{[%clk 01:02:40]} {[%emt 00:00:27]} Ndf8 {[%clk 00:46:11]} {[%emt 00:38:10]} 18.
Qc1 {[%clk 00:59:26]} {[%emt 00:03:44]} g5 {[%clk 00:43:32]} {[%emt 00:03:10]}
19. b4 {[%clk 00:45:40]} {[%emt 00:14:16]} Ng6 {[%clk 00:42:57]} {[%emt
00:01:04]} 20. b5 {[%clk 00:44:28]} {[%emt 00:01:42]} Bf8 {[%clk 00:39:52]}
{[%emt 00:03:35]} 21. bxc6 {[%clk 00:44:06]} {[%emt 00:00:53]} bxc6 {[%clk
00:40:15]} {[%emt 00:00:07]} 22. Qc2 {[%clk 00:41:09]} {[%emt 00:03:26]} Rd8
{[%clk 00:25:38]} {[%emt 00:15:07]} 23. Qa4 {[%clk 00:31:23]} {[%emt 00:10:17]}
Bd7 {[%clk 00:13:37]} {[%emt 00:12:31]} 24. Rxd7 {[%clk 00:17:19]} {[%emt
00:14:34]} Rxd7 {[%clk 00:14:00]} {[%emt 00:00:06]} 25. Qxc6 {[%clk 00:17:42]}
{[%emt 00:00:07]} Qd8 {[%clk 00:12:10]} {[%emt 00:02:20]} 26. Nd5 {[%clk
00:18:07]} {[%emt 00:00:05]} Kg7 {[%clk 00:10:25]} {[%emt 00:02:15]} 27. Qa4
{[%clk 00:17:58]} {[%emt 00:00:39]} Bc5 {[%clk 00:09:32]} {[%emt 00:01:23]} 28.
Nh2 {[%clk 00:17:50]} {[%emt 00:00:38]} Bxe3 {[%clk 00:08:27]} {[%emt
00:01:36]} 29. fxe3 {[%clk 00:15:47]} {[%emt 00:02:33]} Rb8 {[%clk 00:05:54]}
{[%emt 00:03:03]} 30. Ng4 {[%clk 00:11:32]} {[%emt 00:04:44]} Rdb7 {[%clk
00:05:46]} {[%emt 00:00:38]} 31. Rf1 {[%clk 00:06:16]} {[%emt 00:05:47]} Rb1
{[%clk 00:05:32]} {[%emt 00:00:43]} 32. Qxa7 {[%clk 00:06:24]} {[%emt
00:00:22]} R8b7 {[%clk 00:05:22]} {[%emt 00:00:40]} 33. Qa6 {[%clk 00:06:43]}
{[%emt 00:00:11]} Rxf1+ {[%clk 00:05:03]} {[%emt 00:00:50]} 34. Bxf1 {[%clk
00:07:12]} Rb1 {[%clk 00:04:18]} {[%emt 00:01:14]} 35. Ngf6 {[%clk 00:07:16]}
{[%emt 00:00:26]} Qb8 {[%clk 00:02:56]} {[%emt 00:01:52]} 36. Nh5+ {[%clk
00:04:36]} {[%emt 00:03:10]} Kf8 {[%clk 00:02:14]} {[%emt 00:01:13]} 37. Nhf6
{[%clk 00:04:01]} {[%emt 00:01:05]} Kg7 {[%clk 00:01:47]} {[%emt 00:00:57]} 38.
Nh5+ {[%clk 00:04:26]} {[%emt 00:00:04]} Kf8 {[%clk 00:02:15]} {[%emt
00:00:02]} 39. Nhf6 {[%clk 00:04:55]} {[%emt 00:00:01]} Kg7 {[%clk 00:00:34]}
{[%emt 00:02:11]} 40. Nh5+ {[%emt 00:00:21]} 1/2-1/2